[Event "87th Tata Steel Challengers 2025"]
[Site "Wijk aan Zee"]
[Date "2025.01.29"]
[Round "10.5"]
[White "L'Ami, Erwin"]
[Black "Oro, Faustino"]
[Result "1-0"]
[Annotator "TA"]
[ECO "A14"]
[WhiteElo "2614"]
[BlackElo "2447"]
[PlyCount "105"]
[EventDate "2025.01.13"]
[EventType "tourn"]
[EventCountry "NED"]
[SourceTitle "playchess.com"]
[Source "ChessBase"]
[SourceQuality "1"]
[TimeControl "40/6000+30:20/3000+30:900+30"]

{[%evp 12,105,15,10,10,9,17,0,10,-8,0,0,0,-15,0,0,32,0,6,0,0,-6,21,14,0,8,43,2,70,74,70,70,72,87,86,65,94,79,99,75,81,72,126,120,118,0,60,31,83,39,78,79,79,70,108,86,148,138,129,108,127,128,125,108,94,113,106,17,14,14,54,28,27,31,31,8,8,9,24,51,255,262,2043,1895,1497,564,3038,2104,5161,5077,29951,29957,29980,29981,29980,29981]} 1. Nf3 {[%emt 0:00:06]} Nf6 {[%emt 0:00:14]} 2. c4 {[%emt 0:00:19]} e6 {[%emt 0:00:10]} 3. g3 {[%emt 0:00:12]} d5 {[%emt 0:00:06]} 4. Bg2 {[%emt 0:00:18]} Be7 {[%emt 0:00:10]} 5. O-O {[%emt 0:00:14]} O-O {[%emt 0:00:04]} 6. b3 {[%emt 0:00:10]} d4 {[%emt 0:00:33]} 7. e3 {[%emt 0:02:02]} c5 {[%emt 0:01:19]} 8. exd4 {[%emt 0:01:45]} cxd4 {[%emt 0:01:11]} 9. d3 {[%emt 0:01:18]} Nc6 {[%emt 0:01:50] The position is equal.} 10. Re1 {[%emt 0:00:28]} Re8 {[%emt 0:01:49]} 11. Ne5 {[%emt 0:03:30]} Nxe5 {[%emt 0:03:37]} 12. Rxe5 {[%emt 0:00:27]} Nd7 {[%emt 0:03:57]} 13. Re1 {[%emt 0:03:08]} Bf8 {[%emt 0:03:47]} 14. Nd2 {[%emt 0:06:18]} e5 {[%emt 0:04:04]} 15. Rb1 {[%emt 0:10:02]} a5 {[%emt 0:05:50]} 16. a3 {[%emt 0:03:04]} Rb8 {[%emt 0:14:21]} 17. b4 {[%emt 0:04:24]} axb4 {[%emt 0:00:56]} 18. axb4 {[%emt 0:00:07]} b6 {[%emt 0:00:16]} 19. Ne4 {[%emt 0:06:22]} Nf6 {[%emt 0:12:25]} (19... Bb7 $11) 20. Bg5 $14 {[%emt 0:07:08]} Be7 {[%emt 0:00:19]} 21. Bxf6 {[%emt 0:00:49]} Bxf6 {[%emt 0:00:01]} 22. c5 {[%emt 0:02:53]} Be7 {[%emt 0:14:24]} 23. c6 {[%emt 0:16:35]} Be6 {[%emt 0:01:29]} 24. b5 {[%emt 0:02:43]} Ra8 {[%emt 0:01:42]} 25. h4 {[%emt 0:04:54]} h6 {[%emt 0:04:01]} 26. Qh5 {[%emt 0:02:56]} Qc7 {[%emt 0:02:54] [#]} (26... Bf8 $142) 27. Nd2 $1 $16 {[%emt 0:03:13]} Bd6 {[%emt 0:05:07]} 28. Ne4 {[%emt 0:09:42]} (28. Nc4 $16) 28... Bf8 {[%emt 0:01:00]} (28... Be7 $1 $11) 29. Ra1 {[%emt 0:00:32]} (29. g4 $5) 29... Red8 {[%emt 0:06:52]} (29... f5 $14) 30. Qe2 {[%emt 0:01:33] White is more active.} Ba3 {[%emt 0:04:21]} 31. Nd2 {[%emt 0:01:06]} Bb4 {[%emt 0:01:28]} 32. Reb1 {[%emt 0:02:30] [#] Rxa8 would now be deadly.} (32. Qxe5 $2 Qxe5 33. Rxe5 Rxa1+ $19) 32... Ra5 {[%emt 0:04:45]} 33. Qd1 {[%emt 0:01:01]} Bc3 {[%emt 0:07:14]} (33... Rxb5 $2 34. Qa4 Bxd2 35. Rxb5 $18 (35. Qxb5 Ba5 $16)) ({Black should play} 33... Qe7) 34. Rxa5 {[%emt 0:00:10]} Bxa5 {[%emt 0:00:01]} 35. Ra1 {[%emt 0:04:31]} Bb4 {[%emt 0:04:11]} 36. Ra4 {[%emt 0:02:16]} Qe7 {[%emt 0:00:33]} 37. Qc2 {[%emt 0:01:45]} Bxd2 {[%emt 0:01:12]} 38. Qxd2 {[%emt 0:00:08]} Qc5 {[%emt 0:00:00] Inhibits Qc1.} 39. Qb4 {[%emt 0:02:52]} (39. Qb2 $16) 39... Qc1+ $11 {[%emt 0:00:38]} 40. Kh2 {[%emt 0:00:11]} Qc2 $1 {[%emt 0:00:22][%csl LRd3,LRf2]} 41. Qe7 {[%emt 0:09:41]} Rc8 {[%emt 0:03:57]} 42. Ra7 $36 {[%emt 0:05:09][%cal Oa7d7][%mdl 2048] Black must now prevent Rd7! White is pushing.} Qxf2 {[%emt 0:03:46]} 43. Qd6 {[%emt 0:02:17] Against Bd5} e4 $1 {[%emt 0:17:45]} 44. dxe4 {[%emt 0:16:14][%cal Bd3e4,Be4e5,Be5e6,Be6f7][%mdl 32]} Bc4 {[%emt 0:06:37][%cal Oc4f1] ( -> ...Bf1!)} 45. e5 {[%emt 0:03:22] Rd7 is the strong threat.} Bxb5 $2 {[%emt 0:03:44] Loses the game.} ({Better is} 45... Kh7 $14) 46. e6 $18 {[%emt 0:02:06]} ({Inferior is} 46. c7 Bf1 47. Qd5 (47. Qd8+ $2 Kh7 $19) 47... Bxg2 48. Qxg2 Qxg2+ 49. Kxg2 Kf8 $15) 46... Bf1 $2 {[%emt 0:06:49]} (46... Bxc6 47. exf7+ Kh8 48. Qxc6 Rxc6 49. Ra8+ Kh7) 47. exf7+ {[%emt 0:01:07]} Kh7 {[%emt 0:02:30]} 48. Qd5 {[%emt 0:01:12]} Bxg2 {[%emt 0:00:13]} 49. Qxg2 {[%emt 0:00:07]} Qf5 {[%emt 0:00:06]} 50. Re7 {[%emt 0:02:16] Threatening mate with Re8.} Rf8 {[%emt 0:02:02]} 51. c7 {[%emt 0:01:58] White mates.} d3 {[%emt 0:02:00]} 52. Re8 {[%emt 0:01:50]} Qxf7 {[%emt 0:00:05]} 53. Qe4+ {[%emt 0:00:29] Weighted Error Value: White=0.14 (very precise) /Black=0.36.  Loses game:     	---       	Black=1      Mistake:       	White=2     	Black=6      Inaccurate:     	White=4     	Black=6      OK:         	White=15    	Black=15     Best:        	White=5     	Black=2      Strong:       	---       	Black=2} (53. c8=R $2 {perishes.} Rxe8 54. Rxe8 Qxe8 $19) 1-0

[Event "87th Tata Steel Challengers 2025"]
[Site "Wijk aan Zee"]
[Date "2025.01.29"]
[Round "10.6"]
[White "Deshmukh, Divya"]
[Black "Svane, Frederik"]
[Result "0-1"]
[Annotator "TA"]
[ECO "E60"]
[WhiteElo "2490"]
[BlackElo "2664"]
[PlyCount "136"]
[EventDate "2025.01.13"]
[EventType "tourn"]
[EventCountry "NED"]
[SourceTitle "playchess.com"]
[Source "ChessBase"]
[SourceQuality "1"]
[TimeControl "40/6000+30:20/3000+30:900+30"]

{[%evp 9,136,8,30,12,27,17,15,-8,-14,-37,-25,-33,-10,-39,-35,-32,-25,-18,-7,-27,10,0,18,11,40,36,20,0,0,0,12,0,13,13,13,18,45,50,64,46,38,43,46,32,48,40,52,0,0,0,0,-25,-24,-31,-31,-34,-29,-32,-27,-51,-36,-29,-37,-105,-95,-89,-97,-138,-132,-181,-160,-170,-174,-170,-160,-213,-216,-209,-197,-208,-200,-208,-217,-208,-186,-237,-223,-272,-272,-256,-256,-395,-387,-361,-342,-835,-996,-1187,-1058,-1256,-764,-1741,-1405,-1202,0,-1643,-1836,-1732,-772,-1974,-1922,-1309,-1460,-1044,0,-316,0,-2392,-2291,-1030,-972,-2448,-1824,-1826,-1455,-4133,-2916,-2402,-1879]} 1. d4 {[%emt 0:00:06]} Nf6 {[%emt 0:00:05]} 2. c4 {[%emt 0:00:06]} g6 {[%emt 0:00:06]} 3. g3 {[%emt 0:00:17]} c5 {[%emt 0:00:19]} 4. dxc5 {[%emt 0:07:23]} Bg7 {[%emt 0:02:57]} 5. Bg2 {[%emt 0:02:51]} Qa5+ {[%emt 0:02:19]} 6. Nc3 {[%emt 0:03:05] E60: King's Indian: Unusual lines and Fianchetto Variation without Nc3.} Qxc5 {[%emt 0:00:43]} 7. Qa4 {[%emt 0:25:34] 7.Qa4 has lost popularity.} Ng4 {[%emt 0:00:18]} 8. Ne4 {[%emt 0:03:11] The position is equal.} Qc6 $146 {[%emt 0:00:21]} (8... Qf5 9. Nh3 Nc6 10. Nf4 Qa5+ 11. Qxa5 Nxa5 12. Nd5 Rb8 13. Bg5 f6 14. Bf4 Ne5 {0-1 Kunsztowicz,U (2300)-Bokelbrink,U (2265) Oberliga Nord N 9899 1998}) 9. Qxc6 {[%emt 0:03:27]} dxc6 {[%emt 0:00:07]} 10. Nf3 {[%emt 0:02:26]} Na6 {[%emt 0:02:10]} 11. Rb1 {[%emt 0:11:35]} Bf5 {[%emt 0:13:02]} 12. Nh4 {[%emt 0:05:34]} Bxe4 {[%emt 0:24:34]} 13. Bxe4 {[%emt 0:00:33]} O-O-O {[%emt 0:00:31]} 14. O-O {[%emt 0:04:10]} Nc5 {[%emt 0:22:06]} 15. Bc2 {[%emt 0:06:20]} Ne6 {[%emt 0:01:38]} 16. Nf3 {[%emt 0:00:42]} Ne5 {[%emt 0:02:47]} 17. Nxe5 {[%emt 0:00:21]} Bxe5 {[%emt 0:00:01]} 18. Be3 {[%emt 0:00:38][%cal Ob2b4]} Bd4 {[%emt 0:00:13]} 19. Bc1 {[%emt 0:07:02]} h5 {[%emt 0:00:59]} 20. h4 {[%emt 0:02:21]} Rd7 {[%emt 0:03:44]} 21. b4 {[%emt 0:05:37]} Rhd8 {[%emt 0:01:11]} 22. Kg2 {[%emt 0:07:25] Not much happening anymore} Kb8 {[%emt 0:15:34]} 23. c5 {[%emt 0:03:36]} Nc7 {[%emt 0:00:52]} 24. Bf4 {[%emt 0:01:33]} Kc8 {[%emt 0:00:23]} 25. Bb3 {[%emt 0:05:09] This pair of bishops is nice.} e6 {[%emt 0:00:26]} 26. Bc4 {[%emt 0:00:48]} Bf6 {[%emt 0:08:09]} 27. Rfc1 {[%emt 0:01:21]} Nd5 {[%emt 0:01:01]} 28. Bxd5 {[%emt 0:00:14]} ({White should try} 28. Bh6 $14) 28... Rxd5 $11 {[%emt 0:00:41]} 29. a4 {[%emt 0:01:01]} Be5 {[%emt 0:00:37]} 30. Bxe5 {[%emt 0:00:30]} Rxe5 {[%emt 0:00:02][%mdl 4096] Endgame KRR-KRR} 31. Rb2 {[%emt 0:00:25]} Red5 {[%emt 0:00:00]} 32. Rcc2 {[%emt 0:00:30] Inhibits Rd2.} Kc7 {[%emt 0:00:25]} 33. Kf3 {[%emt 0:00:24]} Rd1 {[%emt 0:01:59]} 34. b5 {[%emt 0:00:37]} R8d7 {[%emt 0:02:21]} 35. b6+ {[%emt 0:00:21]} Kb8 {[%emt 0:00:58]} 36. a5 {[%emt 0:00:09] [#]} (36. Ke3 $15) 36... a6 $1 $17 {[%emt 0:00:01]} 37. Ra2 {[%emt 0:00:48]} Kc8 {[%emt 0:00:07]} 38. e3 {[%emt 0:00:27]} Kd8 {[%emt 0:00:24]} 39. Ra4 {[%emt 0:00:43]} (39. Kf4 $17) 39... Ke7 $19 {[%emt 0:00:12]} 40. g4 {[%emt 0:00:37]} hxg4+ {[%emt 0:00:49]} 41. Kxg4 {[%emt 0:50:05]} R7d2 {[%emt 0:51:51]} 42. Raa2 {[%emt 0:00:00]} (42. Rxd2 $17 Rxd2 43. f4) 42... Rg1+ {[%emt 0:00:00]} 43. Kf4 {[%emt 0:00:00]} Rxc2 {[%emt 0:00:00]} 44. Rxc2 {[%emt 0:00:00] KR-KR} Ra1 {[%emt 0:00:00]} 45. f3 {[%emt 0:00:00]} Rxa5 {[%emt 0:00:00]} 46. e4 {[%emt 0:00:00]} Rb5 {[%emt 0:00:00]} 47. Ke5 {[%emt 0:00:00]} (47. Kg5 $142) 47... Rb4 {[%emt 0:00:00]} 48. Rc1 {[%emt 0:00:00]} a5 {[%emt 0:00:00]} 49. Kf4 {[%emt 0:00:00]} a4 {[%emt 0:00:00]} 50. Kg5 {[%emt 0:00:00]} (50. Ra1 {might work better.}) 50... a3 {[%emt 0:00:00]} 51. Ra1 {[%emt 0:00:00]} Ra4 {[%emt 0:00:00]} 52. e5 $2 {[%emt 0:00:00]} (52. Ra2) 52... a2 {[%emt 0:00:00]} 53. f4 {[%emt 0:00:00]} Kf8 {[%emt 0:00:00] [#]} 54. h5 {[%emt 0:00:00]} gxh5 {[%emt 0:00:00]} 55. Kxh5 {[%emt 0:00:00]} Kg7 {[%emt 0:00:00][%cal Of7f6]} (55... Rxf4 $2 56. Rxa2 Rf5+ 57. Kh6 Rxe5 58. Ra8+ Ke7 59. Rb8 Rxc5 60. Rxb7+ Kd6 61. Rxf7 $19) 56. Rg1+ {[%emt 0:00:00]} Kf8 {[%emt 0:00:00]} 57. Ra1 {[%emt 0:00:00]} Ke7 {[%emt 0:00:00][%cal Oa4a8]} (57... Rxf4 $2 58. Rxa2 Rf5+ 59. Kh6 Rxe5 60. Ra8+ Ke7 61. Rb8 Rxc5 62. Rxb7+ Kd6 63. Rxf7 $19) 58. Kg5 {[%emt 0:00:00]} Ra3 {[%emt 0:00:00][%cal Of7f6]} 59. Kh5 {[%emt 0:00:00]} f6 {[%emt 0:00:00]} 60. Kg6 {[%emt 0:00:00]} Rg3+ {[%emt 0:00:00]} 61. Kh5 {[%emt 0:06:34]} Ra3 $2 {[%emt 0:11:01]} (61... Rg2 62. Kh4 Kf7) 62. Kg6 {[%emt 0:00:02]} Rg3+ $2 {[%emt 0:00:05]} (62... f5 63. Kg7 Rg3+ 64. Kh6 Rg2) 63. Kh5 $1 {[%emt 0:00:04]} Rg2 {[%emt 0:00:02] Black is clearly winning.} 64. Kh4 {[%emt 0:00:52]} Kf7 {[%emt 0:00:15] aiming for ...fxe5.} 65. Kh3 {[%emt 0:03:25]} Rb2 {[%emt 0:00:07]} 66. Kg4 {[%emt 0:00:02]} Kg6 {[%emt 0:00:08]} 67. f5+ {[%emt 0:00:05]} exf5+ {[%emt 0:01:09]} 68. Kf4 {[%emt 0:00:05]} Rb4+ {[%emt 0:00:20] Weighted Error Value: White=0.33/Black=0.23 (precise)   Mistake:       	White=7     	---        Inaccurate:     	White=2     	Black=3      OK:         	White=16    	Black=21     Best:        	White=1     	Black=2      Strong:       	White=1     	Black=1} 0-1

[Event "87th Tata Steel Challengers 2025"]
[Site "Wijk aan Zee"]
[Date "2025.01.29"]
[Round "10.7"]
[White "Pijpers, Arthur"]
[Black "Bulmaga, Irina"]
[Result "1-0"]
[Annotator "TA"]
[ECO "C65"]
[WhiteElo "2474"]
[BlackElo "2386"]
[PlyCount "77"]
[EventDate "2025.01.13"]
[EventType "tourn"]
[EventCountry "NED"]
[SourceTitle "playchess.com"]
[Source "ChessBase"]
[SourceQuality "1"]
[TimeControl "40/6000+30:20/3000+30:900+30"]

{[%evp 9,77,10,24,14,17,17,23,-2,5,7,27,34,33,31,44,16,44,23,29,1,33,38,68,72,110,110,112,82,112,109,131,129,181,191,165,170,146,151,149,145,200,180,351,354,360,331,742,745,746,725,765,754,754,750,768,754,876,745,782,742,827,767,778,777,778,778,760,765,906,857]} 1. e4 {[%emt 0:00:03]} e5 {[%emt 0:00:07]} 2. Nf3 {[%emt 0:00:04]} Nc6 {[%emt 0:00:06]} 3. Bb5 {[%emt 0:00:03]} Nf6 {[%emt 0:00:09]} 4. d3 {[%emt 0:00:03]} Bc5 {[%emt 0:00:16]} 5. Nbd2 {[%emt 0:00:05]} O-O {[%emt 0:01:06]} 6. Bxc6 {[%emt 0:00:04] C65: Ruy Lopez: Berlin Defence (3...Nf6), unusual lines and 4 0-0 Bc5.} dxc6 {[%emt 0:04:15]} 7. Nc4 {[%emt 0:00:08]} Nd7 {[%emt 0:00:48]} 8. Ne3 {[%emt 0:00:06] White has an edge.} (8. Ncxe5 Nxe5 9. Nxe5 Qd4 $19) 8... Re8 {[%emt 0:02:19]} 9. g4 {[%emt 0:00:13]} Bxe3 {[%emt 0:04:57]} 10. Bxe3 {[%emt 0:00:22]} Nf8 {[%emt 0:00:55]} 11. Rg1 {[%emt 0:05:19]} b6 $146 {[%emt 0:01:40]} (11... Qd6 12. Qd2 a5 13. Nh4 Ne6 14. Nf5 Qb4 15. c3 Qb5 16. O-O-O c5 17. f4 exf4 18. Bxf4 {½-½ Narayanan,S (2611)-Anton Guijarro,D (2674) FIDE World Cup 2019 (1.3)}) 12. Qd2 {[%emt 0:22:59]} a5 {[%emt 0:00:26][%cal Ba7a5,Ba5a4][%mdl 32]} 13. O-O-O {[%emt 0:12:23]} c5 {[%emt 0:05:11]} 14. g5 {[%emt 0:06:13]} Qd6 {[%emt 0:07:39]} 15. Qc3 {[%emt 0:00:35]} a4 {[%emt 0:01:18][%cal Oa4a3]} 16. h4 {[%emt 0:03:12][%cal Bh2h4,Bh4h5,Bh5h6][%mdl 32] Black is now going downhill.} Bb7 {[%emt 0:09:37]} 17. h5 {[%emt 0:03:00]} Qe6 {[%emt 0:18:05]} 18. h6 {[%emt 0:13:02]} g6 {[%emt 0:02:12]} 19. Kb1 {[%emt 0:00:27]} Nd7 {[%emt 0:10:08]} 20. Nh2 {[%emt 0:02:59]} Qc6 {[%emt 0:02:35]} (20... Qd6 $16 21. f4 b5) 21. Ng4 $18 {[%emt 0:11:14]} b5 {[%emt 0:00:18][%cal Bb6b5,Bb5b4][%mdl 32]} 22. f4 {[%emt 0:09:00]} b4 {[%emt 0:00:11]} 23. Qd2 {[%emt 0:00:18] White has more active pieces.} exf4 {[%emt 0:03:21]} 24. Bxf4 {[%emt 0:00:01]} Qb6 {[%emt 0:05:31]} (24... f6 $16 25. Rdf1 (25. gxf6 Kf7 $18) 25... fxg5) 25. Be3 {[%emt 0:02:07]} Qe6 $2 {[%emt 0:06:43] [#]} (25... Re7 26. Rgf1 Qc6) 26. Bxc5 $1 {[%emt 0:07:34][%mdl 512]} Nxc5 {[%emt 0:06:33]} 27. Qxb4 {[%emt 0:00:05]} Qb6 {[%emt 0:03:42]} (27... Nd7 28. Qxb7 a3) 28. Nf6+ {[%emt 0:00:53][%cal Bg4f6,Bf6e8,Be8c7][%mdl 32] White is clearly winning.} Kh8 {[%emt 0:00:01]} 29. Qc3 {[%emt 0:00:16]} Qa5 {[%emt 0:07:50]} 30. Qxa5 {[%emt 0:00:06]} (30. Nxe8+ Qxc3 31. bxc3 Rxe8 $11) 30... Rxa5 {[%emt 0:00:04]} 31. Nxe8 {[%emt 0:00:05]} Ne6 {[%emt 0:00:07]} 32. Rdf1 {[%emt 0:02:53]} Nxg5 {[%emt 0:00:31]} 33. Nxc7 {[%emt 0:00:27] [#] Threatens to win with Rf6.} Kg8 {[%emt 0:00:44]} 34. c4 {[%emt 0:00:39]} Re5 {[%emt 0:02:17]} 35. Nb5 {[%emt 0:02:18]} Bc6 {[%emt 0:01:01]} 36. Nd6 {[%emt 0:00:26]} Re6 {[%emt 0:00:07]} 37. Rxg5 {[%emt 0:02:12]} Rxd6 {[%emt 0:00:03]} 38. Kc2 {[%emt 0:00:15]} f6 {[%emt 0:00:19]} 39. e5 {[%emt 0:00:42] Weighted Error Value: White=0.12 (very precise) /Black=0.54  Mistake:       	---       	Black=4      Inaccurate:     	White=2     	Black=5      OK:         	White=11    	Black=6      Best:        	White=1     	---} 1-0